[Event "Superbet Blitz Poland 2022"]
[Site "Warsaw"]
[Date "2022.05.22"]
[Round "7.2"]
[White "Caruana, Fabiano"]
[Black "Anand, Viswanathan"]
[Result "1-0"]
[ECO "C42"]
[WhiteElo "2786"]
[BlackElo "2751"]
[Annotator "TA"]
[PlyCount "90"]
[EventDate "2022.05.22"]
[EventType "tourn"]
[EventCountry "POL"]
[SourceTitle "playchess.com"]
[Source "ChessBase"]
[SourceQuality "1"]
[TimeControl "300+2"]

{[%evp 18,90,22,16,20,22,13,18,23,13,19,16,9,15,20,22,30,28,27,7,7,7,7,17,8,0,0,0,0,0,0,-55,0,-7,0,0,16,9,49,32,48,56,92,96,127,102,116,14,14,14,27,22,77,90,159,155,172,150,134,145,209,164,187,-12,512,172,610,538,684,679,679,658,646,133,152]} 1. e4 {[%emt 0:00:01]} e5 {[%emt 0:00:01]} 2. Nf3 {[%emt 0:00:01]} Nf6 {[%emt 0:00:01]} 3. Nxe5 {[%emt 0:00:03]} d6 {[%emt 0:00:01]} 4. Nf3 {[%emt 0:00:02]} Nxe4 {[%emt 0:00:01]} 5. d4 {[%emt 0:00:05]} d5 {[%emt 0:00:01]} 6. Bd3 {[%emt 0:00:01]} Bd6 {[%emt 0:00:02]} 7. O-O {[%emt 0:00:03]} O-O {[%emt 0:00:02]} 8. c4 {[%emt 0:00:01]} c6 {[%emt 0:00:02]} 9. Re1 {[%emt 0:00:03]} Bf5 {[%emt 0:00:02]} 10. Qb3 {[%emt 0:00:02]} Qd7 {[%emt 0:00:03] outshines the older 10...Na6. C42: Petroff Defence: 3 Nxe5 and unusual White 3rd moves.} 11. Nc3 {[%emt 0:00:03]} Nxc3 {[%emt 0:00:18]} 12. Bxf5 {[%emt 0:00:02]} Qxf5 {[%emt 0:00:02] The position is equal.} 13. bxc3 {[%emt 0:00:01]} (13. Qxb7 {feels hotter.} Qd7 14. Qxd7 Nxd7 15. c5) 13... b6 {[%emt 0:00:07] Against c5} 14. cxd5 {[%emt 0:00:03]} cxd5 {[%emt 0:00:02]} 15. Qb5 {[%emt 0:00:04]} Qd7 {[%emt 0:00:05]} (15... Nd7 $2 16. Qc6 $18) 16. Rb1 {[%emt 0:00:01] [#]} Nc6 $146 {[%emt 0:00:15]} ({Predecessor:} 16... Rc8 17. g3 Bf8 18. Bd2 Nc6 19. Ne5 Nxe5 20. Rxe5 Rd8 21. Qxd7 Rxd7 22. Rb5 Rad8 {½-½ (51) Vachier Lagrave,M (2795)-Caruana,F (2808) Stavanger 2017}) 17. g3 {[%emt 0:00:09]} Bc7 $1 {[%emt 0:00:20]} 18. c4 {[%emt 0:01:00]} Rfd8 {[%emt 0:01:24]} 19. Bg5 {[%emt 0:01:41] cxd5 is the strong threat.} f6 {[%emt 0:00:10]} 20. Bd2 {[%emt 0:00:01]} Ne7 {[%emt 0:00:15]} 21. c5 {[%emt 0:00:27]} Qxb5 {[%emt 0:00:06]} 22. Rxb5 {[%emt 0:00:01]} Kf7 {[%emt 0:00:16]} 23. a4 {[%emt 0:00:02]} Rab8 {[%emt 0:00:22]} 24. Be3 {[%emt 0:00:20]} (24. Reb1 $11) 24... Nf5 {[%emt 0:00:24]} (24... bxc5 $15 {was preferrable.} 25. dxc5 a6) 25. Reb1 $11 {[%emt 0:00:18]} g5 {[%emt 0:00:19]} 26. Ne1 {[%emt 0:00:14][%cal Bf3e1,Be1d3,Bd3b4,Bb4a6][%mdl 32]} Ne7 {[%emt 0:00:21]} 27. Nd3 {[%emt 0:00:10]} Ke6 {[%emt 0:00:08]} 28. Nb4 {[%emt 0:00:05]} Rbc8 {[%emt 0:00:15]} 29. Na6 {[%emt 0:00:01]} bxc5 {[%emt 0:00:05]} 30. Rb7 $1 {[%emt 0:00:15]} (30. Rxc5 $6 Bd6 $11) 30... Bd6 {[%emt 0:00:10] Threatens to win with ...c4.} 31. dxc5 {[%emt 0:00:16][%cal Bd4c5,Bc5c6,Bc6c7][%mdl 32]} Be5 {[%emt 0:00:01]} 32. Rxa7 {[%emt 0:00:02]} (32. f4 $16 gxf4 33. gxf4 (33. Bxf4 Bxf4 34. gxf4 Nc6 $11)) 32... d4 {[%emt 0:00:01]} 33. Bd2 $36 {[%emt 0:00:01][%mdl 2048] White has some pressure.} Nd5 {[%emt 0:00:04] Against Rb6+} 34. a5 {[%emt 0:00:11]} Nc3 {[%emt 0:00:02]} (34... d3 $11 {remains equal.}) 35. Rb6+ $16 {[%emt 0:00:03]} Kd5 {[%emt 0:00:02] [#]} (35... Kf5 $142) 36. c6 $1 {[%emt 0:00:04]} (36. Rxh7 $6 Ne4 37. Bc1 Nxc5 $14) 36... Kc4 {[%emt 0:00:09]} 37. Rd7 {[%emt 0:00:09] aiming for Rxd8.} (37. Rxh7 Nd5 38. c7 Bxc7 39. Nxc7 Nxb6) 37... Nd5 {[%emt 0:00:07]} 38. Rbb7 {[%emt 0:00:05] 0x0.000842e5bfd5dp-1022s more active pieces.} Re8 {[%emt 0:00:03]} (38... g4 $16 {was necessary.} 39. Nb4 Nxb4 40. Rxb4+ Kd3) 39. c7 $18 {[%emt 0:00:02]} ({Not} 39. Rxh7 Rxc6 40. Nb4 Nxb4 41. Bxb4 (41. Rxb4+ $2 Kd3 $19) 41... d3 $11) 39... g4 {[%emt 0:00:06]} 40. Be1 $2 {[%emt 0:00:04] [#]} ({Don't do} 40. Rxh7 $6 Re6 41. Rb8 Ree8 $14) (40. h4 $18) 40... Nc3 $2 {[%emt 0:00:03][%mdl 8192] This move loses the game for Black.} (40... Bxc7 $1 $11 41. Bd2 (41. Rb1 Be5) 41... Be5) 41. Kf1 $2 {[%emt 0:00:01]} (41. Bxc3 Kxc3 42. Kf1) 41... Ne4 $2 {[%emt 0:00:03]} (41... Nd5 42. Rb2 (42. Rxh7 Re6 $16) 42... h5) 42. Rb6 {[%emt 0:00:08]} Kd3 {[%emt 0:00:05]} 43. Nb4+ {[%emt 0:00:02]} Kc4 44. Rc6+ Kb5 {[%emt 0:00:04]} 45. a6 $2 {[%emt 0:00:04]} (45. Rd5+ $18 {and the rest is easy.} Ka4 46. Nd3) 45... Nc3 {[%emt 0:00:02] Weighted Error Value: White=0.50/Black=0.56} 1-0

[Event "Superbet Blitz Poland 2022"]
[Site "Warsaw"]
[Date "2022.05.22"]
[Round "7.3"]
[White "Rapport, Richard"]
[Black "Shevchenko, Kirill"]
[Result "1/2-1/2"]
[ECO "B30"]
[WhiteElo "2776"]
[BlackElo "2644"]
[Annotator "TA"]
[PlyCount "150"]
[EventDate "2022.05.22"]
[EventType "tourn"]
[EventCountry "POL"]
[SourceTitle "playchess.com"]
[Source "ChessBase"]
[SourceQuality "1"]
[TimeControl "300+2"]

{[%evp 14,150,8,0,0,0,17,19,4,-17,-20,-10,-24,-32,-24,-30,-25,-21,-33,-55,-41,-40,-37,-44,0,0,0,0,0,0,0,0,0,-116,-81,-81,-40,-53,-11,-44,-29,-52,-53,-47,-63,-67,0,-32,425,426,1473,-244,-230,-249,-242,-266,-145,-294,-267,-389,-381,-364,-358,-358,-330,-338,-317,-317,-317,-317,-317,-296,-202,-219,-210,-206,-200,-200,-180,-154,-100,-87,-96,-192,-200,-235,-178,-175,-168,-273,-170,-161,-162,-231,-119,-210,-154,-155,-160,-289,-305,-300,-283,-315,-248,-234,-213,-383,-102,-616,-81,-90,-36,-57,-9,-57,-57,-62,-62,-112,0,0,8,0,10,10,10,10,20,20,20,20,20,12,12,0,0,-8,-8]} 1. e4 {[%emt 0:00:03] ChessBase II} c5 {[%emt 0:00:01]} 2. Nc3 {[%emt 0:00:01]} Nc6 {[%emt 0:00:01]} 3. Bb5 {[%emt 0:00:06]} Nd4 {[%emt 0:00:03]} 4. Nf3 {[%emt 0:00:01]} e6 {[%emt 0:00:12]} 5. O-O {[%emt 0:00:04]} a6 {[%emt 0:00:01]} 6. Bd3 {[%emt 0:00:02]} Nc6 {[%emt 0:00:02]} 7. Be2 {[%emt 0:00:02]} Nd4 $1 {[%emt 0:00:01][%mdl 4] is currently scoring better than 7...Qc7.} 8. Bd3 {[%emt 0:00:01]} Nc6 {[%emt 0:00:00] B30: Sicilian: 2...Nc6 3 Bb5, lines without ...g6.} 9. Nd5 {[%emt 0:00:01]} g6 {[%emt 0:00:13] [#]} 10. c3 $1 {[%emt 0:00:19]} Bg7 {[%emt 0:00:03] [#]} (10... d6 11. Ne3) 11. Ne3 $146 {[%emt 0:00:03]} ({Predecessor:} 11. Re1 d6 12. Ne3 Nge7 13. Bf1 d5 14. exd5 exd5 15. d4 cxd4 16. cxd4 O-O 17. b3 Nf5 18. Ba3 Re8 19. Nxd5 Rxe1 20. Qxe1 Nfxd4 21. Nxd4 Bxd4 {½-½ (24) Maze,S (2579)-Demuth,A (2517) Brest 2019 CBM 190 Extra [ChessBase II]}) 11... Nge7 {[%emt 0:00:14]} 12. Bc2 {[%emt 0:00:05]} d5 {[%emt 0:00:08]} 13. exd5 {[%emt 0:00:08]} exd5 {[%emt 0:00:14] Hoping for ...d4.} 14. d4 {[%emt 0:00:01]} cxd4 {[%emt 0:00:01]} 15. cxd4 {[%emt 0:00:08]} O-O {[%emt 0:00:02]} 16. Bb3 {[%emt 0:00:08]} Qd6 {[%emt 0:00:33]} 17. h3 {[%emt 0:00:05]} Bf5 {[%emt 0:00:25]} 18. Ng4 {[%emt 0:00:33]} Be4 {[%emt 0:00:29]} (18... Bxg4 $5 19. hxg4 Qd7 $15) 19. Nfe5 {[%emt 0:00:02]} Nf5 {[%emt 0:00:01] Inhibits Nh6+.} (19... Bxe5 20. dxe5 Nxe5 21. Bf4 $18) 20. f3 {[%emt 0:00:07]} Ncxd4 {[%emt 0:01:33]} 21. fxe4 {[%emt 0:00:06]} Ng3 $36 {[%emt 0:00:01][%mdl 2048] Black has some pressure.} 22. Rf2 {[%emt 0:01:10] Inhibits Nge2+.} Nxb3 {[%emt 0:00:44]} 23. axb3 {[%emt 0:01:49]} (23. Qxb3 $11 Bxe5 24. Nxe5 Qxe5 25. Bf4 Ne2+ 26. Rxe2 Qxf4 27. exd5) 23... Nxe4 $17 {[%emt 0:00:15]} 24. Nf3 {[%emt 0:00:05]} Nxf2 {[%emt 0:00:03]} 25. Nxf2 {[%emt 0:00:02]} Rfe8 {[%emt 0:00:05]} 26. Qd3 {[%emt 0:00:05]} Rac8 {[%emt 0:00:02]} 27. Ng4 {[%emt 0:00:08]} h5 {[%emt 0:00:09]} 28. Nh6+ {[%emt 0:00:11]} Kf8 {[%emt 0:00:03][%cal Oc8c1] And now ...Rxc1+! would win.} 29. Bd2 {[%emt 0:00:00]} Re4 {[%emt 0:00:16]} (29... Bxb2 30. Rf1 $11) ({Better is} 29... Re7 $15) 30. Ng5 {[%emt 0:00:10][%csl LRe4,LRf7] Chess con chili. Pair of Knights!} Rd4 {[%emt 0:00:02][%mdl 8192]} (30... Re7 $15 {stays ahead.} 31. Nh7+ Ke8) 31. Qf3 $1 $18 {[%emt 0:00:07][%csl Gg5,Gh6][%cal Rf3f7]} (31. Nh7+ Ke8 32. Qf3 f5 $11) 31... f5 {[%emt 0:00:02] [#]} (31... Bf6 $142) 32. Be3 $4 {[%emt 0:00:06][%mdl 8192] [#]} (32. Nxf5 $1 $18 {[%mdl 512]} Qb6 (32... gxf5 33. Qxf5+) 33. Nxd4+ Kg8 34. Be3 $1) 32... Bxh6 $1 $19 {[%emt 0:00:03]} 33. Bxd4 {[%emt 0:00:05]} Bxg5 {[%emt 0:00:01]} 34. Rf1 {[%emt 0:00:02]} Bf6 {[%emt 0:00:02]} (34... Kf7 $19 {Strongly threatening ...Bf6.} 35. Rd1 Rc1 36. Rxc1 Bxc1) 35. Be3 {[%emt 0:00:02]} (35. Bxf6 $17 {was forced.} Qxf6 36. Qxd5) 35... Kg7 {[%emt 0:00:02]} (35... Bxb2 $2 36. Rd1 $19) 36. Bf4 {[%emt 0:00:02]} (36. Rd1 $142) 36... Qc5+ {[%emt 0:00:01]} 37. Kh1 {[%emt 0:00:01]} Re8 {[%emt 0:00:00]} (37... Bxb2 $2 38. Re1 $19) 38. Rc1 {[%emt 0:00:02]} Qd4 {[%emt 0:00:03]} 39. Rd1 {[%emt 0:00:02]} Qe4 {[%emt 0:00:01]} (39... Qxb2 $2 40. Qxd5 Re7 41. Bd6 $19) 40. Rxd5 {[%emt 0:00:03]} Qxf3 {[%emt 0:00:02]} (40... Bxb2 $2 41. Bg5 $19) 41. gxf3 {[%emt 0:00:01][%mdl 4096] Endgame KRB-KRB} g5 {[%emt 0:00:05]} (41... Bxb2 42. Rd7+ Kg8 43. Rxb7 $17) 42. Bd2 {[%emt 0:00:02] Inhibits Re1+.} f4 {[%emt 0:00:03]} (42... Bxb2 43. Bxg5 Re6 44. Kg2 $17) 43. h4 {[%emt 0:00:03]} Re5 {[%emt 0:00:02]} ({Not} 43... gxh4 44. Rd7+ Kg6 45. Rxb7) 44. Rd7+ {[%emt 0:00:02]} Re7 {[%emt 0:00:01]} 45. Rd5 {[%emt 0:00:02]} Kg6 {[%emt 0:00:02]} ({Worse is} 45... Bxb2 46. Rxg5+ Kh6 47. Rf5 $11 (47. Bxf4 Rf7 $11)) 46. hxg5 {[%emt 0:00:01]} Bxg5 {[%emt 0:00:01]} (46... Re5 $142 $1 {[%cal Re5d5]} 47. Rd7 Kxg5) 47. Bc3 $17 {[%emt 0:00:03]} Re6 {[%emt 0:00:02] Inhibits Rd6.} 48. Kg2 {[%emt 0:00:01] [#]} (48. Rd7 $17 {was called for.}) 48... Bf6 $1 $19 {[%emt 0:00:01]} 49. Bd2 {[%emt 0:00:04]} Bxb2 {[%emt 0:00:05]} 50. Bxf4 {[%emt 0:00:01]} Bf6 {[%emt 0:00:01] Against Rg5+} 51. Bd2 {[%emt 0:00:01]} (51. Rd7 {might work better.}) 51... Re5 {[%emt 0:00:03]} 52. Rd6 {[%emt 0:00:01]} Kf7 {[%emt 0:00:03]} 53. Rd7+ {[%emt 0:00:01]} (53. f4 $142 Rb5 54. b4) 53... Re7 {[%emt 0:00:00]} (53... Ke6 $19 54. Rd3 Rd5 55. Re3+ Kf5) 54. Rd5 {[%emt 0:00:01]} (54. Rd6 $17) 54... h4 {[%emt 0:00:00]} 55. Kh3 {[%emt 0:00:01]} Ke6 {[%emt 0:00:03] Prevents Rd6+.} 56. Rd3 {[%emt 0:00:04]} (56. Rh5 $17 {only move.}) 56... Rd7 {[%emt 0:00:00]} 57. Re3+ {[%emt 0:00:05]} Kf5 {[%emt 0:00:01]} 58. Be1 {[%emt 0:00:03]} Bg5 {[%emt 0:00:03]} 59. Rc3 {[%emt 0:00:01]} Rd1 {[%emt 0:00:01]} 60. Rc5+ $2 {[%emt 0:00:01]} (60. Bf2) 60... Kg6 $2 {[%emt 0:00:01]} (60... Kf4 $19 {has better winning chances.} 61. Ba5 {[#]} Kxf3 $1 62. Rc3+ Be3) 61. Kg4 $2 {[%emt 0:00:02][%mdl 8192]} Be7 $2 {[%emt 0:00:02]} (61... Rxe1 62. Rxg5+ Kf6 63. Rf5+ Ke6 64. Rf4 $17) (61... Be3 $19 62. Rc7 Rxe1 63. Rxb7 Bg5 64. Rb6+ Bf6) 62. Re5 $17 {[%emt 0:00:03]} Bf6 {[%emt 0:00:01]} ({Black should play} 62... Rd4+ $17 63. f4 Bd6 64. Rg5+ Kf7 65. Rf5+ Ke6 66. Bxh4 Rb4) 63. Re4 {[%emt 0:00:01]} Rd3 {[%emt 0:00:05]} (63... h3 $15 {might be stronger.} 64. Bg3 Rd5) 64. b4 {[%emt 0:00:01]} (64. Re6 $1 $11 h3 65. Bg3 Rd4+ 66. Kxh3) 64... h3 $15 {[%emt 0:00:05]} 65. Bg3 {[%emt 0:00:01]} Rb3 {[%emt 0:00:03]} 66. f4 {[%emt 0:00:02]} (66. Kxh3 $15 Rxf3 67. Kg4) 66... Bc3 {[%emt 0:00:03]} (66... Kf7 $17 {aiming for ...Be7.} 67. Kxh3 Be7) 67. Re3 $11 {[%emt 0:00:01] The position is equal.} b6 {[%emt 0:00:01]} 68. Kxh3 {[%emt 0:00:10] Kg4 is the strong threat.} a5 69. bxa5 {[%emt 0:00:02]} bxa5 {[#]} 70. Be1 $1 {[%emt 0:00:00]} Bxe1 {[%emt 0:00:10]} (70... Kf5 71. Rf3) 71. Rxb3 {[%emt 0:00:00]} Kf5 {[%emt 0:00:00]} 72. Rb1 {[%emt 0:00:00]} Bd2 {[%emt 0:00:00]} 73. Kg2 {[%emt 0:00:03]} Kxf4 {[%emt 0:00:00]} 74. Ra1 {[%emt 0:00:01]} Ke3 {[%emt 0:00:00]} 75. Rxa5 {[%emt 0:00:00]} Bxa5 {Whites escaped into a draw.  Weighted Error Value: White=0.38/Black=0.37} 1/2-1/2

[Event "Superbet Blitz Poland 2022"]
[Site "Warsaw"]
[Date "2022.05.22"]
[Round "7.4"]
[White "Wojtaszek, Radoslaw"]
[Black "Gavrilescu, David"]
[Result "1/2-1/2"]
[ECO "D50"]
[WhiteElo "2696"]
[BlackElo "2518"]
[Annotator "TA"]
[PlyCount "147"]
[EventDate "2022.05.22"]
[EventType "tourn"]
[EventCountry "POL"]
[SourceTitle "playchess.com"]
[Source "ChessBase"]
[SourceQuality "1"]
[TimeControl "300+2"]

{[%evp 9,147,18,34,37,36,31,49,47,46,34,63,52,45,41,89,28,72,83,106,11,14,15,20,16,29,29,30,14,15,0,52,0,85,92,88,93,93,86,86,85,85,85,85,85,85,86,93,86,93,93,93,93,93,70,70,70,73,73,73,73,70,63,73,73,73,0,70,70,100,100,115,115,115,115,115,115,115,115,115,115,143,145,581,8,12,0,590,536,29953,29957,29957,29955,29950,29950,29955,29954,6621,5093,5189,5085,3025,2381,29965,29966,29959,29963,11567,6932,29977,29978,29978,29977,29977,29978,29978,0,29977,0,0,0,0,0,0,0,0,0,0,0,0,0,0,0,0,0,0,0,0,0,0,0]} 1. c4 {[%emt 0:00:01]} e6 {[%emt 0:00:01]} 2. Nc3 {[%emt 0:00:01]} d5 {[%emt 0:00:02]} 3. d4 {[%emt 0:00:01]} Nf6 {[%emt 0:00:01]} 4. Bg5 {[%emt 0:00:02]} dxc4 {[%emt 0:00:02]} 5. e3 {[%emt 0:00:02]} a6 {[%emt 0:00:14]} 6. Bxc4 {[%emt 0:00:13] D50: Queen's Gambit Declined: Dutch-Peruvian Gambit.} b5 {[%emt 0:00:06] 6...c5 deserves study.} 7. Be2 {[%emt 0:00:06]} c5 {[%emt 0:00:12] [#]} 8. Bf3 $146 {[%emt 0:00:20] White is slightly better.} ({Predecessor:} 8. dxc5 Qxd1+ 9. Rxd1 Bb7 10. Bf3 Bxf3 11. Nxf3 Bxc5 12. Bxf6 gxf6 13. Ke2 Ke7 14. Ne4 {1-0 (68) Zvjaginsev,V (2664)-Kharlov,A (2581) Togliatti 2003}) 8... Ra7 {[%emt 0:00:04]} 9. Nge2 {[%emt 0:00:03]} Bb7 {[%emt 0:00:30]} 10. Bxb7 {[%emt 0:00:09]} (10. Bxf6 $5 gxf6 11. Bxb7 Rxb7 12. O-O $14) 10... Rxb7 {[%emt 0:00:02]} 11. O-O {[%emt 0:00:10]} Nbd7 {[%emt 0:00:32]} (11... Rd7 $14) 12. d5 {[%emt 0:00:11]} ({White should try} 12. Ne4 $16) 12... exd5 {[%emt 0:00:02]} 13. Nxd5 {[%emt 0:00:02]} Be7 {[%emt 0:00:01]} 14. Nxe7 {[%emt 0:00:08] White is more active.} ({Better is} 14. Ng3 $16 h6 15. Bf4) 14... Qxe7 $11 {[%emt 0:00:02]} 15. Nc3 {[%emt 0:00:03]} Qe6 {[%emt 0:00:12]} 16. Qf3 {[%emt 0:00:30]} Rb8 {[%emt 0:00:17]} 17. Bf4 {[%emt 0:00:19]} Rd8 {[%emt 0:00:23]} 18. Rad1 {[%emt 0:00:15][%cal Ba1d1,Bd1d5,Bd5c5,Bc5c4,Bc4f4][%mdl 32] Hoping for Bc7.} O-O {[%emt 0:00:01]} 19. Qb7 {[%emt 0:00:03]} b4 {[%emt 0:00:07]} (19... Ne5 $1 $11) 20. Nd5 {[%emt 0:00:08]} (20. Rd6 $14 Qc4 21. Nd5) 20... Nxd5 {[%emt 0:00:23]} (20... Kh8 $1 $11 {remains equal.}) 21. Rxd5 $16 {[%emt 0:00:02] Rfd1 is the strong threat.} Nf6 {[%emt 0:00:08]} 22. Rxc5 {[%emt 0:00:19]} Qxa2 {[%emt 0:00:32]} 23. Qxb4 {[%emt 0:00:15]} Nd5 {[%emt 0:00:02]} 24. Qc4 {[%emt 0:00:08]} Qxc4 {[%emt 0:00:06]} 25. Rxc4 {[%emt 0:00:01]} Nxf4 {[%emt 0:00:13]} 26. Rxf4 {[%emt 0:00:02][%mdl 4096] Endgame KRR-KRR} Rd2 {[%emt 0:00:13]} 27. b4 {[%emt 0:00:03]} g6 {[%emt 0:00:08]} 28. h4 {[%emt 0:00:05][%cal Bh2h4,Bh4h5][%mdl 32]} Rb8 {[%emt 0:00:05]} 29. Rc1 {[%emt 0:00:09]} Rb7 {[%emt 0:00:03]} 30. g4 {[%emt 0:00:28]} Ra2 {[%emt 0:00:18]} 31. h5 {[%emt 0:00:25] Strongly threatening h6.} Kg7 {[%emt 0:00:02]} 32. Kg2 {[%emt 0:00:43]} Ra4 {[%emt 0:00:04]} 33. Rcc4 {[%emt 0:00:10]} a5 {[%emt 0:00:01][%cal Rb7b4]} 34. bxa5 Rxa5 {[%emt 0:00:01]} 35. hxg6 $1 {[%emt 0:00:04]} hxg6 {[%emt 0:00:02]} 36. Rc6 {[%emt 0:00:04]} Rab5 {[%emt 0:00:14]} 37. Rcc4 {[%emt 0:00:11]} (37. Kg3 $16) 37... R5b6 {[%emt 0:00:13]} ({Black should play} 37... Ra5 $1 $11) 38. Rfd4 {[%emt 0:00:04]} Rf6 {[%emt 0:00:04]} 39. g5 {[%emt 0:00:05]} Rf5 {[%emt 0:00:01]} 40. f4 {[%emt 0:00:03]} Ra5 {[%emt 0:00:05]} 41. Rd8 {[%emt 0:00:03]} f6 {[%emt 0:00:19]} 42. gxf6+ Kxf6 {[%emt 0:00:01]} 43. Rc6+ {[%emt 0:00:01]} Kf7 {[%emt 0:00:01]} 44. Rdd6 $1 {[%emt 0:00:03]} g5 {[%emt 0:00:02]} 45. Rf6+ {[%emt 0:00:04]} Ke7 $2 {[%emt 0:00:02][%mdl 8192] [#]} (45... Ke8 $16 {is a better chance.}) 46. Rfe6+ $2 {[%emt 0:00:03]} (46. f5 $1 $18) 46... Kf7 {[%emt 0:00:03]} 47. Rf6+ $2 {[%emt 0:00:01][%mdl 8192]} (47. fxg5 $11 Rxg5+ 48. Kf2) 47... Ke7 $18 {[%emt 0:00:01] [#]} 48. f5 $1 {[%emt 0:00:01] And now Rce6+ would win.} Re5 {[%emt 0:00:08]} 49. Rce6+ {[%emt 0:00:02]} Rxe6 {[%emt 0:00:01]} 50. Rxe6+ {[%emt 0:00:00] KR-KR} Kf7 {[%emt 0:00:01]} 51. Kf3 {[%emt 0:00:02]} Rb4 {[%emt 0:00:01]} 52. e4 {[%emt 0:00:02]} Rb1 {[%emt 0:00:01]} 53. Rg6 {[%emt 0:00:04]} Rf1+ {[%emt 0:00:02]} 54. Ke3 {[%emt 0:00:00]} Rg1 {[%emt 0:00:02]} 55. Kd4 {[%emt 0:00:09] Black must now prevent Kd5.} g4 {[%emt 0:00:02]} 56. Ke3 {[%emt 0:00:02]} g3 {[%emt 0:00:04]} 57. Kf4 {[%emt 0:00:06]} g2 {[%emt 0:00:02]} 58. Ke5 {[%emt 0:00:00]} Kf8 {[%emt 0:00:05]} 59. f6 {[%emt 0:00:01]} Kf7 {[%emt 0:00:01]} 60. Rg7+ {[%emt 0:00:01]} Kf8 {[%emt 0:00:00]} 61. Rg3 {[%emt 0:00:06]} ({Worse is} 61. Ke6 Re1 62. Rxg2 Rxe4+ 63. Kf5 Rh4 $11) 61... Kf7 {[%emt 0:00:01]} 62. Rg7+ {[%emt 0:00:02]} Kf8 $1 {[%emt 0:00:01]} 63. Ke6 $2 {[%emt 0:00:02]} (63. Rg5 {mates} Kf7 64. Rg3 Rf1 65. Rg7+ Ke8 66. Rxg2 Re1 67. Rg8+ Kf7 68. Rg7+ Kf8 69. Kf5) 63... Re1 $11 {[%emt 0:00:01] The position is equal.} 64. Rxg2 {[%emt 0:00:01] White wants to mate with e5.} Rxe4+ {[%emt 0:00:01]} 65. Kf5 {[%emt 0:00:01]} Re1 {[%emt 0:00:05]} 66. Kg6 {[%emt 0:00:01]} Rf1 {[%emt 0:00:02]} 67. Rg5 {[%emt 0:00:02]} Rf2 {[%emt 0:00:02]} 68. Rg4 {[%emt 0:00:01]} Rf1 {[%emt 0:00:00]} 69. Ra4 {[%emt 0:00:01][%cal Ra4a8]} Rg1+ {[%emt 0:00:02]} 70. Kf5 {[%emt 0:00:01]} Rf1+ {[%emt 0:00:00]} 71. Ke6 {[%emt 0:00:01][%cal Ra4a8]} Re1+ {[%emt 0:00:01]} 72. Kf5 {[%emt 0:00:01]} Rf1+ {[%emt 0:00:01]} 73. Ke6 {[%emt 0:00:00][%cal Ra4a8]} Re1+ {[%emt 0:00:01]} 74. Kf5 {Black defended with fortune.  Weighted Error Value: White=0.24 (precise) /Black=0.60} 1/2-1/2